fUSD/lending_fUSD_20260202
["ID","MTS","AMOUNT","RATE_DAILY","PERIOD"]
[404265108,1770016007015,-1144.53,0.00011436,2]
[404265109,1770016007048,-1144.53,0.00011466,2]
[404265110,1770016007080,-1144.53,0.00011496,2]
[404265111,1770016007111,-417.72240687,0.00011511,2]
[404265112,1770016007294,-300.0,0.00011511,2]
[404265113,1770016010306,-7527.87137094,0.00011512,2]
[404265114,1770016010415,-120.76085171,0.00011512,2]
[404265115,1770016010445,-9758.48829658,0.00011512,2]
[404265116,1770016010551,-1144.53,0.00011526,2]
[404265117,1770016010584,-1144.53,0.00011556,2]
[404265118,1770016010616,-150.0,0.00011585,2]
[404265119,1770016010648,-1144.53,0.00011586,2]
[404265120,1770016010682,-151.0,0.00011609,2]
[404265121,1770016010719,-1200.0,0.00011611,2]
[404265122,1770016010829,-150.0,0.00011611,2]
[404265123,1770016010863,-190.65956908,0.00011611,2]
[404265124,1770016010894,-368.85662278,0.00011611,2]
[404265125,1770016010929,-211.77974637,0.00011611,2]
[404265126,1770016010973,-500.0,0.00011611,2]
[404265127,1770016011013,-595.67285086,0.00011611,2]
[404265128,1770016011064,-500.0,0.00011611,2]
[404265129,1770016011103,-500.0,0.00011611,2]
[404265130,1770016011142,-500.0,0.00011611,2]
[404265131,1770016011203,-500.0,0.00011611,2]
[404265132,1770016011246,-500.0,0.00011611,2]
[404265133,1770016011285,-466.07242182,0.00011611,2]
[404265134,1770016011386,-33.92757818,0.00011611,2]
[404265135,1770016011426,-500.0,0.00011611,2]
[404265136,1770016011456,-4102.2561642,0.00011612,2]
[404265137,1770016011627,-727.64251524,0.00011612,2]
[404265138,1770016021954,300.0,0.00011611,2]
[404265142,1770016052704,-680.39619998,0.00011512,2]
[404265143,1770016052737,-680.39619998,0.00011512,2]
[404265144,1770016052770,-2612.02701199,0.00011602,2]
[404265145,1770016052842,-1754.3711761,0.00011602,2]
[404265146,1770016052988,-300.0,0.00011602,2]
[404265147,1770016056046,185.99400278,0.00011512,2]
[404265148,1770016083136,-1600.57824909,0.00011512,2]
[404265149,1770016083169,-300.0,0.00011611,2]
[404265150,1770016083201,-2978.92104886,0.00011612,2]
[404265151,1770016083268,-55.01740132,0.00011612,2]
[404265152,1770016083357,-185.99400278,0.00011612,2]
[404265153,1770016093885,2092.06378113,0.00011612,2]
[404265154,1770016093931,3831.71620423,0.00011612,2]
[404265155,1770016093974,184.97792066,0.00011612,2]
[404265156,1770016094227,378.38431742,0.00011612,2]
[404265157,1770016117009,371.81,0.00011207,2]
[404265158,1770016144137,-200.0,0.00011207,2]
[404265159,1770016144170,-287.0,0.00011611,2]
[404265160,1770016144202,-150.0,0.00011611,2]
[404265412,1770016196372,-250.0,0.00011211,2]
[404265413,1770016199536,-195.0,0.00011211,2]
[404265414,1770016201008,-270.85209738,0.00011211,2]
[404265415,1770016205152,-284.14790262,0.00011211,2]
[404265416,1770016205186,-242.0,0.00011211,2]
[404265417,1770016205218,-509.21763744,0.00011512,2]
[404265418,1770016205251,-530.54510639,0.00011512,2]
[404265419,1770016205284,-530.54510639,0.00011512,2]
[404265420,1770016205316,-2500.0,0.00011512,2]
[404265421,1770016205348,-257.57,0.000116,2]
[404265422,1770016205537,-300.0,0.00011611,2]
[404265423,1770016205570,-1200.0,0.00011611,2]
[404265424,1770016205604,-2146.6216353,0.00011612,2]
[404265425,1770016205891,2706.7667294,0.00011512,2]
[404265426,1770016205918,10000.01,0.00011512,2]
[404265427,1770016205945,4939.12789801,0.00011512,2]
[404265430,1770016231637,-1427.00894998,0.00011512,2]
[404265431,1770016231649,-5784.96598384,0.00011512,2]
[404265432,1770016231662,-269.71340763,0.00011512,2]
[404265433,1770016231704,-736.07642552,0.00011512,2]
[404265434,1770016231716,-6779.46985046,0.00011512,2]
[404265435,1770016231728,-347.43508066,0.00011512,2]
[404265436,1770016231740,-1292.8919888,0.00011512,2]
[404265437,1770016231752,-7321.82953091,0.00011512,2]
[404265438,1770016231764,-1009.1119276,0.00011512,2]
[404265439,1770016231775,-21644.9449561,0.00011512,2]
[404265440,1770016231808,-3055.13271573,0.00011512,2]
[404265441,1770016231821,-321.55982235,0.00011512,2]
[404265442,1770016231838,-123892.44911996,0.00011512,2]
[404265443,1770016231850,-17345.2929151,0.00011512,2]
[404265444,1770016231862,-885.07221746,0.00011512,2]
[404265445,1770016231876,-492.21212702,0.00011512,2]
[404265446,1770016231887,-1295.21988168,0.00011512,2]
[404265447,1770016231902,-1286.0085527,0.00011512,2]
[404265448,1770016231914,-1407.00725734,0.00011512,2]
[404265449,1770016231925,-682.15500896,0.00011512,2]
[404265450,1770016231937,-445.96440231,0.00011512,2]
[404265460,1770016237855,-556.21774041,0.00011512,2]
[404265461,1770016237896,-346.33670778,0.00011512,2]
[404265462,1770016238038,-449.3404125,0.00011512,2]
[404265463,1770016238050,-550.6595875,0.00011512,2]
[404265464,1770016238063,-18647.01312944,0.00011512,2]
[404265481,1770016241000,-1.7e-07,0.00011512,2]
[404265482,1770016241015,-4920.78164875,0.00011512,2]
[404265483,1770016241026,-441.91299393,0.00011512,2]
[404265484,1770016241038,-419.64107469,0.00011512,2]
[404265485,1770016241053,-734503.24668272,0.00011512,2]
[404265486,1770016241063,-2799999.9,0.00011612,2]
[404265487,1770016241072,-500.0,0.00011612,2]
[404265488,1770016241082,-190.6336,0.00011612,2]
[404265489,1770016241091,-1144.53,0.00011616,2]
[404265490,1770016241101,-1144.53,0.00011646,2]
[404265491,1770016241111,-1144.53,0.00011676,2]
[404265492,1770016241120,-1144.53,0.00011706,2]
[404265493,1770016241131,-262.30733313,0.00011709,2]
[404265494,1770016241140,-692.23320224,0.00011709,2]
[404265495,1770016241149,-1221.18142178,0.00011709,2]
[404265496,1770016241159,-151.0,0.00011712,2]
[404265497,1770016241168,-151.0,0.00011712,2]
[404265498,1770016241178,-166.44647278,0.00011712,2]
[404265499,1770016241188,-200.0,0.00011712,2]
[404265500,1770016241198,-500.0,0.00011712,2]
[404265501,1770016241207,-1000.0,0.00011712,2]
[404265502,1770016241216,-1144.53,0.00011736,2]
[404265503,1770016241225,-1144.53,0.00011766,2]
[404265504,1770016241235,-1144.53,0.00011795,2]
[404265505,1770016241245,-1144.53,0.00011825,2]
[404265506,1770016241255,-1144.53,0.00011855,2]
[404265507,1770016241264,-1144.53,0.00011885,2]
[404265508,1770016241273,-150.00153354,0.00011909,2]
[404265509,1770016241283,-1144.53,0.00011915,2]
[404265510,1770016241293,-1144.53,0.00011945,2]
[404265511,1770016241303,-602.0,0.00012038,2]
[404265512,1770016241312,-276.0,0.00012038,2]
[404265513,1770016241322,-372.0,0.00012062,2]
[404265514,1770016241331,-150.0,0.00012125,2]
[404265515,1770016241341,-500.0,0.00012125,2]
[404265516,1770016241350,-150.0,0.00012125,2]
[404265517,1770016241359,-3215.34,0.00012135,2]
[404265518,1770016241369,-150.0,0.0001218,2]
[404265519,1770016241388,-500.0,0.0001218,2]
[404265520,1770016241408,-150.0,0.00012182,2]
[404265521,1770016241423,-150.0,0.00012182,2]
[404265522,1770016241438,-171.8,0.00012182,2]
[404265523,1770016241450,-17645.90462732,0.00012196,2]
[404265524,1770016241462,-17407.12051915,0.00012198,2]
[404265525,1770016241473,-1826.81437292,0.00012209,2]
[404265526,1770016241485,-150.0,0.00012235,2]
[404265527,1770016241497,-500.0,0.00012235,2]
[404265528,1770016241508,-500.0,0.0001226,2]
[404265529,1770016241519,-200.0,0.00012289,2]
[404265530,1770016241531,-500.0,0.00012289,2]
[404265531,1770016241542,-333.0,0.00012296,2]
[404265532,1770016241553,-312.66498707,0.00012296,2]
[404265533,1770016241564,-999.99,0.00012296,2]
[404265534,1770016241573,-163.0,0.000123,2]
[404265535,1770016241582,-13849.27,0.000123,2]
[404265536,1770016241591,-150.99,0.000123,2]
[404265537,1770016241602,-9999.99,0.000123,2]
[404265538,1770016241612,-1229.84,0.000123,2]
[404265539,1770016241624,-464.87,0.000123,2]
[404265540,1770016241633,-500.0,0.000123,2]
[404265541,1770016241643,-1182.49,0.00012311,2]
[404265542,1770016241653,-9999.99,0.00012311,2]
[404265543,1770016241664,-9999.99,0.00012311,2]
[404265544,1770016241674,-9999.99,0.00012311,2]
[404265545,1770016241684,-500.0,0.00012324,2]
[404265546,1770016241693,-500.0,0.00012324,2]
[404265547,1770016241703,-150.0,0.00012324,2]
[404265548,1770016241713,-150.0,0.00012324,2]
[404265549,1770016241723,-500.0,0.00012324,2]
[404265550,1770016241733,-150.0,0.00012324,2]
[404265551,1770016241743,-399.30874568,0.00012331,2]
[404265552,1770016241753,-500.0,0.00012344,2]
[404265553,1770016241762,-553.40923612,0.00012379,2]
[404265554,1770016241772,-500.0,0.00012379,2]
[404265555,1770016241782,-150.0,0.00012379,2]
[404265556,1770016241791,-500.0,0.00012379,2]
[404265557,1770016241801,-103075.46166547,0.00012399,2]
[404265558,1770016241811,-14610.22,0.00012399,2]
[404265559,1770016241821,-9999.99,0.00012399,2]
[404265560,1770016241830,-499.99,0.00012399,2]
[404265561,1770016241840,-500.0,0.00012399,2]
[404265562,1770016241849,-163.0,0.000124,2]
[404265563,1770016241859,-150.40929257,0.00012411,2]
[404265564,1770016241868,-500.0,0.00012411,2]
[404265565,1770016241880,-150.0,0.00012411,2]
[404265566,1770016241891,-152.39087668,0.00012411,2]
[404265567,1770016241913,-500.0,0.00012411,2]
[404265568,1770016241922,-500.0,0.00012411,2]
[404265569,1770016241932,-500.0,0.00012411,2]
[404265570,1770016241942,-500.0,0.00012411,2]
[404265571,1770016241951,-500.0,0.00012411,2]
[404265572,1770016241960,-500.0,0.00012411,2]
[404265573,1770016241970,-500.0,0.00012411,2]
[404265574,1770016241979,-150.0,0.00012411,2]
[404265575,1770016241988,-150.0,0.00012411,2]
[404265576,1770016241997,-150.0,0.00012411,2]
[404265577,1770016242006,-150.10178686,0.00012411,2]
[404265578,1770016242016,-150.8823375,0.00012411,2]
[404265579,1770016242025,-150.86853195,0.00012411,2]
[404265580,1770016242034,-150.0,0.00012411,2]
[404265581,1770016242044,-150.28399281,0.00012411,2]
[404265582,1770016242053,-150.0,0.00012411,2]
[404265583,1770016242062,-150.0,0.00012411,2]
[404265584,1770016242071,-150.0,0.00012411,2]
[404265585,1770016242081,-150.0,0.00012411,2]
[404265586,1770016242090,-150.0,0.00012411,2]
[404265587,1770016242100,-530.54510637,0.00012425,2]
[404265588,1770016242110,-530.54510637,0.00012425,2]
[404265589,1770016242119,-500.0,0.00012434,2]
[404265590,1770016242134,-150.0,0.00012434,2]
[404265591,1770016242143,-500.0,0.00012434,2]
[404265592,1770016242152,-500.0,0.00012454,2]
[404265593,1770016242162,-500.0,0.00012466,2]
[404265594,1770016242171,-280.54652626,0.00012466,2]
[404265595,1770016242181,-500.0,0.00012466,2]
[404265596,1770016242191,-500.0,0.00012466,2]
[404265597,1770016242200,-501.86439171,0.00012466,2]
[404265598,1770016242210,-500.0,0.00012466,2]
[404265599,1770016242219,-504.83440669,0.00012466,2]
[404265600,1770016242228,-500.30543777,0.00012466,2]
[404265601,1770016242237,-500.0,0.00012466,2]
[404265602,1770016242247,-150.54573415,0.00012466,2]
[404265603,1770016242256,-150.0,0.00012466,2]
[404265604,1770016242265,-150.0,0.00012466,2]
[404265605,1770016242274,-150.0,0.00012466,2]
[404265606,1770016242284,-150.0,0.00012466,2]
[404265607,1770016242293,-155.94467862,0.00012466,2]
[404265608,1770016242303,-150.0,0.00012466,2]
[404265609,1770016242312,-150.0,0.00012466,2]
[404265610,1770016242322,-500.0,0.00012488,2]
[404265611,1770016242331,-150.0,0.00012488,2]
[404265612,1770016242341,-500.0,0.00012488,2]
[404265613,1770016242350,-500.0,0.00012509,2]
[404265614,1770016242360,-512.2574055,0.00012521,2]
[404265615,1770016242375,-500.0,0.00012521,2]
[404265616,1770016242385,-477.85631038,0.00012521,2]
[404265617,1770016242394,-500.0,0.00012521,2]
[404265618,1770016242404,-500.0,0.00012521,2]
[404265619,1770016242413,-200.0,0.00012521,2]
[404265620,1770016242423,-289.36328116,0.00012521,2]
[404265621,1770016242436,-150.0,0.00012521,2]
[404265622,1770016242445,-150.0,0.00012521,2]
[404265623,1770016242455,-419.25,0.00012541,2]
[404265624,1770016242464,-188772.95,0.00012543,2]
[404265625,1770016242475,-150.99,0.00012543,2]
[404265626,1770016242484,-23633.88,0.00012543,2]
[404265627,1770016242493,-9999.99,0.00012543,2]
[404265628,1770016242504,-14009.2,0.00012543,2]
[404265629,1770016242513,-299.99,0.00012543,2]
[404265630,1770016242523,-4999.99,0.00012543,2]
[404265631,1770016242532,-356.16390379,0.00012543,2]
[404265632,1770016242542,-200.0,0.00012543,2]
[404265633,1770016242551,-350.0,0.00012543,2]
[404265634,1770016242561,-309.28369003,0.00012563,2]
[404265635,1770016242570,-500.0,0.00012574,2]
[404265636,1770016242580,-500.0,0.00012575,2]
[404265637,1770016242589,-248.75689772,0.00012575,2]
[404265638,1770016242598,-506.67226287,0.00012575,2]
[404265639,1770016242608,-150.0,0.00012575,2]
[404265640,1770016242617,-509.21763744,0.00012577,2]
[404265641,1770016242629,-1000.0,0.00012612,2]
[404265642,1770016242639,-500.0,0.0001263,2]
[404265643,1770016242649,-291.47561802,0.0001263,2]
[404265644,1770016242660,-502.19943206,0.00012662,2]
[404265645,1770016242670,-230.54652626,0.00012662,2]
[404265646,1770016242680,-250.0,0.00012662,2]
[404265647,1770016242689,-193.0,0.00012662,2]
[404265648,1770016242699,-500.0,0.00012685,2]
[404265649,1770016242709,-500.0,0.0001274,2]
[404265650,1770016242718,-420.0,0.00012751,2]
[404265651,1770016242728,-1680.0,0.00012772,2]
[404265652,1770016242737,-300.0,0.00012772,2]
[404265653,1770016242747,-250.0,0.00012772,2]
[404265654,1770016242756,-250.0,0.00012773,2]
[404265655,1770016242766,-383.0,0.00012795,2]
[404265656,1770016242776,-236.43,0.000128,2]
[404265657,1770016242786,-163.0,0.000128,2]
[404265658,1770016242796,-1013.0,0.00012805,2]
[404265659,1770016242805,-500.0,0.00012808,2]
[404265660,1770016242816,-500.0,0.00012848,2]
[404265661,1770016242826,-17645.90462732,0.0001288,2]
[404265662,1770016242835,-17407.12051915,0.00012884,2]
[404265663,1770016242845,-245.19,0.00012897,2]
[404265664,1770016242854,-1600.0,0.00013031,2]
[404265665,1770016242863,-171.8,0.00013119,2]
[404265666,1770016242873,-500.0,0.00013122,2]
[404265667,1770016242884,-7805.66,0.00013151,2]
[404265668,1770016242894,-245.11593114,0.00013162,2]
[404265669,1770016242904,-530.54510637,0.00013337,2]
[404265670,1770016242914,-530.54510637,0.00013337,2]
[404265671,1770016242924,-649.29226948,0.00013351,2]
[404265672,1770016242933,-598.04962937,0.00013356,2]
[404265673,1770016242943,-500.0,0.00013396,2]
[404265674,1770016242952,-150.00153354,0.00013489,2]
[404265675,1770016242961,-17645.90462732,0.00013564,2]
[404265676,1770016242971,-17407.12051915,0.00013571,2]
[404265677,1770016242980,-243.69836758,0.00013631,2]
[404265678,1770016242989,-509.21763744,0.00013641,2]
[404265679,1770016242998,-500.0,0.0001367,2]
[404265680,1770016243008,-507.04117268,0.00013698,2]
[404265681,1770016243017,-500.0,0.00013698,2]
[404265682,1770016243026,-469.64985738,0.00013698,2]
[404265683,1770016243036,-500.0,0.00013698,2]
[404265684,1770016243045,-500.0,0.00013698,2]
[404265685,1770016243054,-500.0,0.00013698,2]
[404265686,1770016243064,-244.52182497,0.00013698,2]
[404265687,1770016243073,-516.16418367,0.00013698,2]
[404265688,1770016243082,-500.0,0.00013698,2]
[404265689,1770016243091,-500.0,0.00013698,2]
[404265690,1770016243100,-500.0,0.00013698,2]
[404265691,1770016243109,-500.0,0.00013698,2]
[404265692,1770016243119,-500.0,0.00013698,2]
[404265693,1770016243129,-500.0,0.00013698,2]
[404265694,1770016243139,-500.0,0.00013698,2]
[404265695,1770016243148,-500.0,0.00013698,2]
[404265696,1770016243157,-500.0,0.00013698,2]
[404265697,1770016243166,-500.0,0.00013698,2]
[404265698,1770016243175,-500.0,0.00013698,2]
[404265699,1770016243185,-596.3421329,0.00013698,2]
[404265700,1770016243194,-586.19962979,0.00013698,2]
[404265701,1770016243204,-500.0,0.00013698,2]
[404265702,1770016243213,-500.0,0.00013698,2]
[404265703,1770016243222,-500.0,0.00013698,2]
[404265704,1770016243232,-500.0,0.00013698,2]
[404265705,1770016243241,-502.83428693,0.00013698,2]
[404265706,1770016243250,-208.77047208,0.00013698,2]
[404265707,1770016243259,-500.0,0.00013698,2]
[404265708,1770016243269,-500.0,0.00013698,2]
[404265709,1770016243278,-500.0,0.00013698,2]
[404265710,1770016243288,-500.0,0.00013698,2]
[404265711,1770016243298,-500.0,0.00013698,2]
[404265712,1770016243308,-365.11189625,0.00013698,2]
[404265713,1770016243318,-500.0,0.00013698,2]
[404265714,1770016243327,-500.0,0.00013698,2]
[404265715,1770016243336,-500.0,0.00013698,2]
[404265716,1770016243345,-500.0,0.00013698,2]
[404265717,1770016243355,-509.63945804,0.00013698,2]
[404265718,1770016243364,-500.0,0.00013698,2]
[404265719,1770016243373,-500.0,0.00013698,2]
[404265720,1770016243383,-500.0,0.00013698,2]
[404265721,1770016243393,-500.0,0.00013698,2]
[404265722,1770016243402,-504.58121564,0.00013698,2]
[404265723,1770016243411,-500.0,0.00013698,2]
[404265724,1770016243421,-500.0,0.00013698,2]
[404265725,1770016243431,-500.0,0.00013698,2]
[404265726,1770016243443,-581.80646883,0.00013698,2]
[404265727,1770016243453,-500.0,0.00013698,2]
[404265728,1770016243463,-500.0,0.00013698,2]
[404265729,1770016243472,-500.0,0.00013698,2]
[404265730,1770016243481,-500.0,0.00013698,2]
[404265731,1770016243491,-193.34712914,0.00013698,2]
[404265732,1770016243500,-500.0,0.00013698,2]
[404265733,1770016243511,-500.0,0.00013698,2]
[404265734,1770016243520,-500.0,0.00013698,2]
[404265735,1770016243529,-500.0,0.00013698,2]
[404265736,1770016243539,-512.55184272,0.00013698,2]
[404265737,1770016243548,-500.0,0.00013698,2]
[404265738,1770016243558,-500.0,0.00013698,2]
[404265739,1770016243567,-500.0,0.00013698,2]
[404265740,1770016243576,-500.0,0.00013698,2]
[404265741,1770016243585,-500.0,0.00013698,2]
[404265742,1770016243596,-500.0,0.00013698,2]
[404265743,1770016243606,-500.0,0.00013698,2]
[404265744,1770016243616,-500.0,0.00013698,2]
[404265745,1770016243625,-500.0,0.00013698,2]
[404265746,1770016243635,-500.0,0.00013698,2]
[404265747,1770016243645,-500.0,0.00013698,2]
[404265749,1770016243655,-500.0,0.00013698,2]
[404265750,1770016243664,-500.0,0.00013698,2]
[404265751,1770016243673,-500.0,0.00013698,2]
[404265752,1770016243683,-418.08001855,0.00013698,2]
[404265753,1770016243693,-500.0,0.00013698,2]
[404265755,1770016243703,-500.0,0.00013698,2]
[404265756,1770016243713,-500.0,0.00013698,2]
[404265757,1770016243723,-500.0,0.00013698,2]
[404265758,1770016243733,-500.0,0.00013698,2]
[404265759,1770016243743,-508.9071214,0.00013698,2]
[404265760,1770016243752,-500.0,0.00013698,2]
[404265761,1770016243762,-500.0,0.00013698,2]
[404265762,1770016243771,-500.0,0.00013698,2]
[404265763,1770016243781,-500.0,0.00013698,2]
[404265764,1770016243791,-500.0,0.00013698,2]
[404265765,1770016243800,-508.51455349,0.00013698,2]
[404265766,1770016243809,-500.0,0.00013698,2]
[404265767,1770016243818,-500.0,0.00013698,2]
[404265768,1770016243828,-500.0,0.00013698,2]
[404265769,1770016243837,-500.0,0.00013698,2]
[404265770,1770016243847,-500.0,0.00013698,2]
[404265771,1770016243856,-500.0,0.00013698,2]
[404265772,1770016243865,-327.30466151,0.00013698,2]
[404265773,1770016243876,-500.0,0.00013698,2]
[404265774,1770016243885,-500.0,0.00013698,2]
[404265775,1770016243895,-500.0,0.00013698,2]
[404265776,1770016243904,-500.0,0.00013698,2]
[404265777,1770016243913,-500.0,0.00013698,2]
[404265778,1770016243922,-500.0,0.00013698,2]
[404265779,1770016243932,-500.0,0.00013698,2]
[404265780,1770016243941,-500.0,0.00013698,2]
[404265781,1770016243950,-500.0,0.00013698,2]
[404265782,1770016243959,-500.0,0.00013698,2]
[404265783,1770016243969,-500.0,0.00013698,2]
[404265784,1770016243978,-500.0,0.00013698,2]
[404265785,1770016243988,-500.0,0.00013698,2]
[404265786,1770016243997,-500.0,0.00013698,2]
[404265787,1770016244006,-500.0,0.00013698,2]
[404265788,1770016244016,-500.0,0.00013698,2]
[404265789,1770016244025,-500.0,0.00013698,2]
[404265790,1770016244034,-502.51921833,0.00013698,2]
[404265791,1770016244043,-345.62119018,0.00013698,2]
[404265792,1770016244052,-500.0,0.00013698,2]
[404265793,1770016244062,-500.0,0.00013698,2]
[404265794,1770016244071,-500.0,0.00013698,2]
[404265795,1770016244082,-500.0,0.00013698,2]
[404265796,1770016244091,-500.0,0.00013698,2]
[404265797,1770016244102,-500.0,0.00013698,2]
[404265798,1770016244112,-208.85704061,0.00013942,2]
[404265799,1770016244121,-500.0,0.00013944,2]
[404265800,1770016244132,-170.36367963,0.00013973,2]
[404265801,1770016244141,-500.0,0.00013973,2]
[404265802,1770016244151,-164.70227396,0.00013973,2]
[404265803,1770016244160,-500.0,0.00013973,2]
[404265804,1770016244169,-541.62569807,0.00013973,2]
[404265805,1770016244179,-500.0,0.00013973,2]
[404265806,1770016244189,-500.0,0.00013973,2]
[404265807,1770016244199,-446.80882298,0.00013973,2]
[404265808,1770016244208,-500.0,0.00013973,2]
[404265809,1770016244217,-500.0,0.00013973,2]
[404265810,1770016244227,-487.48417293,0.00013973,2]
[404265811,1770016244237,-362.10232148,0.00013973,2]
[404265812,1770016244247,-500.0,0.00013973,2]
[404265813,1770016244257,-500.83637505,0.00013973,2]
[404265814,1770016244267,-500.0,0.00013973,2]
[404265815,1770016244277,-500.0,0.00013973,2]
[404265816,1770016244287,-500.0,0.00013973,2]
[404265817,1770016244297,-500.0,0.00013973,2]
[404265818,1770016244307,-500.0,0.00013973,2]
[404265819,1770016244317,-500.0,0.00013973,2]
[404265820,1770016244326,-500.0,0.00013973,2]
[404265821,1770016244335,-501.53662804,0.00013973,2]
[404265822,1770016244345,-500.12230816,0.00013973,2]
[404265823,1770016244355,-587.0,0.00014004,2]
[404265824,1770016244364,-1000.0,0.00014013,2]
[404265825,1770016244374,-270.0,0.00014049,2]
[404265826,1770016244387,-171.8,0.00014056,2]
[404265827,1770016244396,-150.0,0.00014182,2]
[404265828,1770016244406,-500.0,0.00014218,2]
[404265829,1770016244416,-17645.90462732,0.00014248,2]
[404265830,1770016244426,-530.54510637,0.0001425,2]
[404265831,1770016244436,-17407.12051915,0.00014257,2]
[404265832,1770016244448,-1600.0,0.00014479,2]
[404265833,1770016244458,-500.0,0.00014492,2]
[404265834,1770016244468,-501.171316,0.00014521,2]
[404265835,1770016244479,-233.72893135,0.00014521,2]
[404265836,1770016244488,-1000.0,0.00014521,2]
[404265837,1770016244498,-169.47739756,0.00014521,2]
[404265838,1770016244509,-506.79391477,0.00014521,2]
[404265839,1770016244518,-1000.0,0.00014521,2]
[404265840,1770016244528,-354.38080813,0.00014521,2]
[404265841,1770016244537,-1000.0,0.00014521,2]
[404265842,1770016244547,-156.95111861,0.00014521,2]
[404265843,1770016244557,-1000.0,0.00014521,2]
[404265844,1770016244566,-500.0,0.00014685,2]
[404265845,1770016244576,-185.99400278,0.00014706,2]
[404265846,1770016244586,-509.21763744,0.00014706,2]
[404265847,1770016244595,-2471.7429,0.00014709,2]
[404265848,1770016244606,-245.11593114,0.00014741,2]
[404265849,1770016244615,-2146.62163529,0.00014756,2]
[404265850,1770016244627,-500.0,0.00014766,2]
[404265851,1770016244637,-151.0,0.000148,2]
[404265852,1770016244647,-151.0,0.000148,2]
[404265853,1770016244657,-151.0,0.00014878,2]
[404265854,1770016244667,-256.05,0.00014878,2]
[404265855,1770016244677,-151.0,0.00014887,2]
[404265856,1770016244687,-151.0,0.00014909,2]
[404265857,1770016244697,-151.0,0.00014914,2]
[404265858,1770016244708,-151.0,0.00014926,2]
[404265859,1770016244717,-17645.90462732,0.00014932,2]
[404265860,1770016244728,-17407.12051915,0.00014943,2]
[404265861,1770016244738,-419.25,0.00014983,2]
[404265862,1770016244748,-250.0,0.00015,2]
[404265863,1770016244758,-500.0,0.0001504,2]
[404265864,1770016244768,-1500.0,0.00015068,2]
[404265865,1770016244778,-770.24622109,0.00015068,2]
[404265866,1770016244982,-1500.0,0.00015068,2]
[404265867,1770016244993,-1500.0,0.00015068,2]
[404265868,1770016245003,-150.00153354,0.00015069,2]
[404265869,1770016245013,-152.55848434,0.00015182,2]
[404265870,1770016245023,-316.57133444,0.00015314,2]
[404265871,1770016245033,-250.0,0.00015343,2]
[404265872,1770016245042,-823.0,0.00015379,2]
[404265873,1770016245052,-245.19,0.00015407,2]
[404265874,1770016245061,-1000.0,0.00015414,2]
[404265875,1770016245071,-163.46067997,0.00015473,2]
[404265876,1770016245080,-500.0,0.00015473,2]
[404265877,1770016245090,-500.0,0.00015473,2]
[404265878,1770016245100,-501.29169705,0.00015473,2]
[404265879,1770016245110,-500.0,0.00015473,2]
[404265880,1770016245119,-500.0,0.00015473,2]
[404265881,1770016245130,-200.70028911,0.00015473,2]
[404265882,1770016245139,-500.0,0.00015473,2]
[404265883,1770016245149,-500.0,0.00015473,2]
[404265884,1770016245159,-501.12989903,0.00015473,2]
[404265885,1770016245169,-161.45537985,0.00015473,2]
[404265886,1770016245179,-500.0,0.00015473,2]
[404265887,1770016245188,-336.43827265,0.00015473,2]
[404265888,1770016245198,-500.0,0.00015473,2]
[404265889,1770016245207,-522.30858015,0.00015473,2]
[404265890,1770016245217,-500.63586771,0.00015473,2]